fUST/lending_fUST_20260123
["ID","MTS","AMOUNT","RATE_DAILY","PERIOD"]
[403129942,1769179917698,-500.0,0.00027397,120]
[403129943,1769179917708,-500.0,0.00027397,120]
[403129944,1769179917717,-500.0,0.00027397,120]
[403129945,1769179917726,-520.66674984,0.00027397,120]
[403129946,1769179917735,-500.0,0.00027397,120]
[403129947,1769179917744,-500.0,0.00027397,120]
[403129948,1769179917754,-502.15505757,0.00027397,120]
[403129949,1769179917764,-372.79532289,0.00027397,120]
[403129950,1769179917773,-500.0,0.00027397,120]
[403129951,1769179917786,-518.09869278,0.00027397,120]
[403129952,1769179917795,-500.0,0.00027397,120]
[403129953,1769179917804,-500.0,0.00027397,120]
[403129954,1769179917814,-512.83564406,0.00027397,120]
[403129955,1769179917823,-530.58,0.00027397,120]
[403129956,1769179917832,-165.84118612,0.00027397,120]
[403129957,1769179917842,-517.90446471,0.00027397,120]
[403129958,1769179917851,-251.86977423,0.00027397,120]
[403129959,1769179917860,-500.0,0.00027397,120]
[403129960,1769179917870,-515.42830859,0.00027397,120]
[403129961,1769179917879,-537.29810188,0.00027397,120]
[403129962,1769179917889,-500.0,0.00027397,120]
[403129963,1769179917898,-526.08760357,0.00027397,120]
[403129964,1769179917908,-500.0,0.00027397,120]
[403129965,1769179917917,-500.0,0.00027397,120]
[403129966,1769179917926,-500.0,0.00027397,120]
[403129967,1769179917936,-299.81220395,0.00027397,120]
[403129968,1769179917945,-245.13163792,0.00027397,120]
[403129969,1769179917954,-500.0,0.00027397,120]
[403129970,1769179917964,-500.0,0.00027397,120]
[403129971,1769179917973,-173.1793,0.00027397,120]
[403129972,1769179917982,-500.0,0.00027397,120]
[403129973,1769179917992,-173.1793,0.00027397,120]
[403129974,1769179918001,-173.1793,0.00027397,120]
[403129975,1769179918010,-511.45099086,0.00027397,120]
[403129976,1769179918192,-500.0,0.00027397,120]
[403129977,1769179918202,-517.8935645,0.00027397,120]
[403129978,1769179918213,-293.13642005,0.00027397,120]
[403129979,1769179918223,-500.0,0.00027397,120]
[403129980,1769179918233,-531.16968285,0.00027397,120]
[403129981,1769179918242,-500.0,0.00027397,120]
[403129982,1769179918252,-260.86,0.00027397,120]
[403129983,1769179918261,-500.0,0.00027397,120]
[403129984,1769179918271,-500.0,0.00027397,120]
[403129985,1769179918285,-500.0,0.00027397,120]
[403129986,1769179918295,-500.0,0.00027397,120]
[403129987,1769179918306,-500.0,0.00027397,120]
[403129988,1769179918316,-497.5,0.00027397,120]
[403129989,1769179918325,-500.0,0.00027397,120]
[403129990,1769179918334,-306.72,0.00027397,120]
[403129991,1769179918343,-500.0,0.00027397,120]
[403129992,1769179918353,-529.00433426,0.00027397,120]
[403129993,1769179918362,-500.0,0.00027397,120]
[403129994,1769179918371,-500.0,0.00027397,120]
[403129995,1769179918381,-500.0,0.00027397,120]
[403129996,1769179918391,-500.0,0.00027397,120]
[403129997,1769179918401,-500.0,0.00027397,120]
[403129998,1769179918412,-360.25,0.00027397,120]
[403129999,1769179918422,-536.36605418,0.00027397,120]
[403130000,1769179918432,-500.0,0.00027397,120]
[403130001,1769179918441,-550.85973641,0.00027397,120]
[403130002,1769179918451,-497.16807369,0.00027397,120]
[403130003,1769179918460,-500.0,0.00027397,120]
[403130004,1769179918470,-500.0,0.00027397,120]
[403130005,1769179918480,-500.0,0.00027397,120]
[403130006,1769179918490,-500.0,0.00027397,120]
[403130007,1769179918500,-500.0,0.00027397,120]
[403130008,1769179918510,-500.0,0.00027397,120]
[403130009,1769179918520,-500.0,0.00027397,120]
[403130010,1769179918533,-298.79755509,0.00027397,120]
[403130011,1769179918543,-520.16170607,0.00027397,120]
[403130012,1769179918552,-520.40537533,0.00027397,120]
[403130013,1769179918562,-510.89351882,0.00027397,120]
[403130014,1769179918572,-415.93554787,0.00027397,120]
[403130015,1769179918581,-500.0,0.00027397,120]
[403130016,1769179918591,-612.20713084,0.00027397,120]
[403130017,1769179918601,-500.0,0.00027397,120]
[403130018,1769179918611,-500.0,0.00027397,120]
[403130019,1769179918621,-500.0,0.00027397,120]
[403130020,1769179918630,-333.22415484,0.00027397,120]
[403130021,1769179918640,-508.66601156,0.00027397,120]
[403130022,1769179918650,-500.0,0.00027397,120]
[403130023,1769179918660,-500.0,0.00027397,120]
[403130024,1769179918669,-500.0,0.00027397,120]
[403130025,1769179918679,-504.01137145,0.00027397,120]
[403130026,1769179918689,-344.06123432,0.00027397,120]
[403130027,1769179918698,-506.58316717,0.00027397,120]
[403130028,1769179918708,-500.0,0.00027397,120]
[403130029,1769179918718,-540.02770214,0.00027397,120]
[403130030,1769179918728,-500.0,0.00027397,120]
[403130031,1769179918737,-500.0,0.00027397,120]
[403130032,1769179918746,-500.0,0.00027397,120]
[403130033,1769179918755,-500.0,0.00027397,120]
[403130034,1769179918765,-500.0,0.00027397,120]
[403130035,1769179918777,-500.0,0.00027397,120]
[403130036,1769179918787,-500.0,0.00027397,120]
[403130037,1769179918796,-500.0,0.00027397,120]
[403130038,1769179918806,-508.35932741,0.00027397,120]
[403130039,1769179918816,-529.57475927,0.00027397,120]
[403130040,1769179918826,-500.0,0.00027397,120]
[403130041,1769179918835,-373.44493752,0.00027397,120]
[403130042,1769179918845,-290.76886924,0.00027397,120]
[403130043,1769179918855,-500.0,0.00027397,120]
[403130044,1769179918864,-500.0,0.00027397,120]
[403130045,1769179918874,-500.0,0.00027397,120]
[403130046,1769179918883,-500.0,0.00027397,120]
[403130047,1769179918893,-500.0,0.00027397,120]
[403130048,1769179918902,-500.0,0.00027397,120]
[403130049,1769179918912,-500.0,0.00027397,120]
[403130050,1769179918921,-500.0,0.00027397,120]
[403130051,1769179918931,-500.0,0.00027397,120]
[403130052,1769179918941,-500.0,0.00027397,120]
[403130053,1769179918950,-500.0,0.00027397,120]
[403130054,1769179918959,-500.0,0.00027397,120]
[403130055,1769179918969,-500.0,0.00027397,120]
[403130056,1769179918978,-617.24978994,0.00027397,120]
[403130057,1769179918988,-500.0,0.00027397,120]
[403130058,1769179918997,-513.70329125,0.00027397,120]
[403130059,1769179919007,-515.95607058,0.00027397,120]
[403130060,1769179919016,-500.0,0.00027397,120]
[403130061,1769179919026,-500.0,0.00027397,120]
[403130062,1769179919035,-500.0,0.00027397,120]
[403130063,1769179919044,-519.2670713,0.00027397,120]
[403130064,1769179919054,-509.87324374,0.00027397,120]
[403130065,1769179919063,-513.64538016,0.00027397,120]
[403130066,1769179919072,-151.0,0.00027397,7]
[403130067,1769179919081,-151.0,0.00027397,7]
[403130068,1769179919090,-151.0,0.00027397,7]
[403130069,1769179919099,-151.0,0.00027397,7]
[403130070,1769179919109,-1000.0,0.00027397,2]
[403130071,1769179919119,-1000.0,0.00027397,2]
[403130072,1769179919128,-1000.0,0.00027397,2]
[403130073,1769179919137,-1000.0,0.00027397,2]
[403130074,1769179919149,-1000.0,0.00027397,2]
[403130075,1769179919158,-1000.0,0.00027397,2]
[403130076,1769179919168,-1000.0,0.00027397,2]
[403130077,1769179919177,-1000.0,0.00027397,2]
[403130078,1769179919186,-1000.0,0.00027397,2]
[403130079,1769179919195,-1000.0,0.00027397,2]
[403130080,1769179919205,-1000.0,0.00027397,2]
[403130081,1769179919216,-1000.0,0.00027397,2]
[403130082,1769179919225,-1000.0,0.00027397,2]
[403130083,1769179919234,-1000.0,0.00027397,2]
[403130084,1769179919244,-1000.0,0.00027397,2]
[403130085,1769179919253,-1000.0,0.00027397,2]
[403130086,1769179919262,-1000.0,0.00027397,2]
[403130087,1769179919271,-616.25558128,0.00027397,2]
[403130088,1769179919282,-200.0,0.00027397,120]
[403130089,1769179919291,-200.0,0.00027397,120]
[403130090,1769179919300,-200.0,0.00027397,120]
[403130091,1769179919309,-200.0,0.00027397,120]
[403130092,1769179919319,-200.0,0.00027397,120]
[403130093,1769179919328,-200.0,0.00027397,120]
[403130094,1769179919337,-200.0,0.00027397,120]
[403130095,1769179919346,-200.0,0.00027397,120]
[403130096,1769179919355,-200.0,0.00027397,120]
[403130097,1769179919364,-200.0,0.00027397,120]
[403130098,1769179919373,-200.0,0.00027397,120]
[403130099,1769179919382,-200.0,0.00027397,120]
[403130100,1769179919392,-200.0,0.00027397,120]
[403130101,1769179919401,-200.0,0.00027397,120]
[403130102,1769179919410,-200.0,0.00027397,120]
[403130103,1769179919419,-200.0,0.00027397,120]
[403130104,1769179919428,-200.0,0.00027397,120]
[403130105,1769179919437,-200.0,0.00027397,120]
[403130106,1769179919447,-200.0,0.00027397,120]
[403130107,1769179919456,-211.9012547,0.00027397,120]
[403130108,1769179919465,-779.89,0.00027397,14]
[403130109,1769179919474,-779.89,0.00027397,14]
[403130110,1769179919483,-779.89,0.00027397,14]
[403130111,1769179919493,-779.89,0.00027397,14]
[403130112,1769179919502,-779.89,0.00027397,14]
[403130113,1769179919511,-779.89,0.00027397,14]
[403130114,1769179919521,-779.89,0.00027397,14]
[403130115,1769179919534,-779.89,0.00027397,14]
[403130116,1769179919543,-779.89,0.00027397,14]
[403130117,1769179919552,-779.89,0.00027397,14]
[403130118,1769179919561,-779.89,0.00027397,14]
[403130119,1769179919570,-779.89,0.00027397,14]
[403130120,1769179919580,-779.89,0.00027397,14]
[403130121,1769179919589,-779.89,0.00027397,14]
[403130122,1769179919598,-779.89,0.00027397,14]
[403130123,1769179919607,-779.89,0.00027397,14]
[403130124,1769179919616,-779.89,0.00027397,14]
[403130125,1769179919625,-779.89,0.00027397,14]
[403130126,1769179919634,-779.89,0.00027397,14]
[403130127,1769179919644,-779.89,0.00027397,14]
[403130128,1769179919653,-779.89,0.00027397,14]
[403130129,1769179919662,-779.89,0.00027397,14]
[403130130,1769179919671,-779.89,0.00027397,14]
[403130131,1769179919681,-779.98313762,0.00027397,14]
[403130132,1769179919690,-500.0,0.00027397,120]
[403130133,1769179919699,-500.0,0.00027397,120]
[403130134,1769179919708,-500.0,0.00027397,120]
[403130135,1769179919717,-500.0,0.00027397,120]
[403130136,1769179919726,-500.0,0.00027397,120]
[403130137,1769179919735,-500.0,0.00027397,120]
[403130138,1769179919744,-500.0,0.00027397,120]
[403130139,1769179919752,-500.0,0.00027397,120]
[403130140,1769179919761,-500.0,0.00027397,120]
[403130141,1769179919770,-500.0,0.00027397,120]
[403130142,1769179919782,-372.57565586,0.00027397,120]
[403130143,1769179919791,-1037.36185412,0.00027397,2]
[403130144,1769179919800,-200.333482,0.00027397,120]
[403130145,1769179919809,-500.0,0.00027397,2]
[403130146,1769179919819,-500.0,0.00027397,2]
[403130147,1769179919827,-500.0,0.00027397,2]
[403130148,1769179919837,-500.0,0.00027397,2]
[403130149,1769179919846,-500.0,0.00027397,2]
[403130150,1769179919855,-560.1692792,0.00027397,2]
[403130151,1769179919865,-1000.0,0.00027397,2]
[403130152,1769179919875,-580.2551264,0.00027397,2]
[403130153,1769179919887,-151.307943,0.00027397,7]
[403130154,1769179919896,-500.0,0.00027397,120]
[403130155,1769179919905,-651.072597,0.00027397,7]
[403130156,1769179919914,-500.0,0.00027397,120]
[403130157,1769179919923,-500.0,0.00027397,120]
[403130158,1769179919931,-651.072597,0.00027397,7]
[403130159,1769179919939,-500.0,0.00027397,120]
[403130160,1769179919947,-651.072597,0.00027397,7]
[403130161,1769179919955,-500.0,0.00027397,120]
[403130162,1769179919963,-651.072597,0.00027397,7]
[403130163,1769179919971,-500.0,0.00027397,120]
[403130164,1769179919980,-651.072597,0.00027397,7]
[403130165,1769179919988,-500.0,0.00027397,120]
[403130166,1769179919995,-500.0,0.00027397,120]
[403130167,1769179920004,-500.0,0.00027397,120]
[403130168,1769179920013,-500.0,0.00027397,120]
[403130169,1769179920024,-500.0,0.00027397,120]
[403130170,1769179920034,-500.0,0.00027397,120]
[403130171,1769179920043,-500.0,0.00027397,120]
[403130172,1769179920052,-500.0,0.00027397,120]
[403130173,1769179920062,-500.0,0.00027397,120]
[403130174,1769179920071,-651.072597,0.00027397,7]
[403130175,1769179920080,-500.0,0.00027397,120]
[403130176,1769179920089,-500.0,0.00027397,120]
[403130177,1769179920098,-651.072597,0.00027397,7]
[403130178,1769179920107,-323.77310066,0.00027397,120]
[403130179,1769179920116,-651.072597,0.00027397,7]
[403130180,1769179920130,-651.072597,0.00027397,7]
[403130181,1769179920139,-651.072597,0.00027397,7]
[403130182,1769179920148,-651.072597,0.00027397,7]
[403130183,1769179920158,-651.072597,0.00027397,7]
[403130184,1769179920170,-651.072597,0.00027397,7]
[403130185,1769179920179,-651.072597,0.00027397,7]
[403130186,1769179920188,-651.072597,0.00027397,7]
[403130187,1769179920197,-651.072597,0.00027397,7]
[403130188,1769179920206,-651.072597,0.00027397,7]
[403130189,1769179920215,-651.072597,0.00027397,7]
[403130190,1769179920225,-651.072597,0.00027397,7]
[403130191,1769179920234,-651.072601,0.00027397,7]
[403130192,1769179920243,-164.73409703,0.00027397,120]
[403130193,1769179920252,-500.0,0.00027397,2]
[403130194,1769179920261,-223.47,0.00027397,10]
[403130195,1769179920270,-500.0,0.00027397,7]
[403130196,1769179920281,-500.0,0.00027397,7]
[403130197,1769179920290,-312.33,0.00027397,7]
[403130198,1769179920299,-500.0,0.00027397,2]
[403130199,1769179920307,-156.24,0.00027397,7]
[403130200,1769179920315,-500.0,0.00027397,120]
[403130201,1769179920324,-151.0,0.00027397,7]
[403130202,1769179920334,-151.0,0.00027397,7]
[403130203,1769179920343,-151.0,0.00027397,7]
[403130204,1769179920352,-151.0,0.00027397,7]
[403130205,1769179920361,-151.0,0.00027397,7]
[403130206,1769179920371,-151.0,0.00027397,7]
[403130207,1769179920380,-151.0,0.00027397,7]
[403130208,1769179920389,-151.0,0.00027397,7]
[403130209,1769179920398,-169.490178,0.00027397,7]
[403130210,1769179920407,-500.0,0.00027397,5]
[403130211,1769179920416,-157.67486192,0.00027397,5]
[403130212,1769179920426,-516.39957901,0.00027397,5]
[403130213,1769179920435,-150.0,0.00027397,5]
[403130214,1769179920444,-2365.11,0.000274,2]
[403130215,1769179920453,-157.67,0.000274,2]
[403130216,1769179920463,-45989.04229971,0.000275,2]
[403130217,1769179920473,-1000.0,0.000275,2]
[403130218,1769179920483,-2365.11,0.000275,2]
[403130219,1769179920492,-2365.11,0.000275,2]
[403130220,1769179920565,-191.15515317,0.000275,120]
[403130221,1769179920576,-369.89,0.000275,7]
[403130222,1769179920585,-2365.11,0.000276,2]
[403130223,1769179920595,-2365.11,0.000276,2]
[403130224,1769179920604,-157.67,0.000276,2]
[403130225,1769179920614,-150.0,0.00027669,2]
[403130226,1769179920624,-524.13,0.00027671,2]
[403130227,1769179920633,-2365.11,0.000277,2]
[403130228,1769179920642,-2365.11,0.000277,2]
[403130229,1769179920652,-1007.0,0.00027777,5]
[403130230,1769179920661,-2365.11,0.000278,2]
[403130231,1769179920670,-2365.11,0.000278,2]
[403130232,1769179920679,-157.67,0.000278,2]
[403130233,1769179920689,-1432.25697,0.000278,120]
[403130234,1769179920698,-202.27809,0.000278,120]
[403130235,1769179920708,-200.0,0.000278,120]
[403130236,1769179920717,-1009.89,0.000278,14]
[403130237,1769179920727,-3354.44,0.000278,2]
[403130238,1769179920736,-2365.11,0.000279,2]
[403130239,1769179920745,-524.13,0.00027945,2]
[403130240,1769179920754,-250.0,0.00027945,5]
[403130241,1769179920763,-1000.0,0.00027945,5]
[403130242,1769179920772,-250.0,0.00027945,5]
[403130243,1769179920787,-15332.50098657,0.00028,2]
[403130244,1769179920796,-1000.0,0.00028,2]
[403130245,1769179920805,-1000.0,0.00028,28]
[403130246,1769179920813,-520.79574972,0.00028,2]
[403130247,1769179920820,-2365.11,0.00028,2]
[403130248,1769179920828,-2365.11,0.00028,2]
[403130249,1769179920837,-157.67,0.00028,2]
[403130250,1769179920845,-1257.80356366,0.00028,120]
[403130251,1769179920855,-1021.0,0.00028,2]
[403130252,1769179920864,-2000.0,0.00028,2]
[403130253,1769179920874,-378.0,0.00028,8]
[403130254,1769179920883,-525.91914816,0.00028023,2]
[403130255,1769179920893,-272.87321917,0.00028082,27]
[403130256,1769179920902,-2365.11,0.000281,2]
[403130257,1769179920911,-2365.11,0.000281,2]
[403130258,1769179920921,-4247.38008044,0.00028129,2]
[403130259,1769179920931,-2365.11,0.000282,2]
[403130260,1769179920940,-2365.11,0.000282,2]
[403130261,1769179920948,-157.67,0.000282,2]
[403130262,1769179920958,-524.21989352,0.00028219,2]
[403130263,1769179920967,-2365.11,0.000283,2]
[403130264,1769179920977,-2365.11,0.000283,2]
[403130265,1769179920986,-2365.11,0.000284,2]
[403130266,1769179920999,-157.67,0.000284,2]
[403130267,1769179921008,-350.0,0.00028493,5]
[403130268,1769179921018,-1351.08329631,0.00028493,5]
[403130269,1769179921030,-350.0,0.00028493,5]
[403130270,1769179921039,-166322.98587106,0.000285,7]
[403130271,1769179921049,-1000.0,0.000285,2]
[403130272,1769179921058,-2365.11,0.000285,2]
[403130273,1769179921067,-2365.11,0.000285,2]
[403130274,1769179921076,-132785.04146958,0.000285,7]
[403130275,1769179921086,-1000.0,0.000285,2]
[403130276,1769179921095,-2365.11,0.000286,2]
[403130277,1769179921103,-2365.11,0.000286,2]
[403130278,1769179921113,-157.67,0.000286,2]
[403130279,1769179921123,-1432.25697,0.000286,120]
[403130280,1769179921133,-200.0,0.000286,120]
[403130281,1769179921144,-1000.0,0.00028639,30]
[403130282,1769179921154,-244.0,0.00028639,30]
[403130283,1769179921163,-2365.11,0.000287,2]
[403130284,1769179921172,-2365.11,0.000287,2]
[403130285,1769179921182,-19158.12360207,0.0002876,2]
[403130286,1769179921191,-4000.0,0.0002876,5]
[403130287,1769179921201,-556.53654241,0.0002876,120]
[403130288,1769179921211,-1151.71158439,0.00028767,120]
[403130289,1769179921219,-173.720273,0.00028767,60]
[403130290,1769179921228,-133650.05359428,0.000288,10]
[403130291,1769179921237,-172.83463222,0.000288,7]
[403130292,1769179921247,-2365.11,0.000288,2]
[403130293,1769179921255,-157.67,0.000288,2]
[403130294,1769179921264,-369.89,0.000288,7]
[403130295,1769179921273,-2365.11,0.000289,2]
[403130296,1769179921286,-2365.11,0.000289,2]
[403130297,1769179921295,-4247.38008044,0.00028961,2]
[403130298,1769179921304,-500.0,0.00029,2]
[403130299,1769179921313,-891.34476571,0.00029,2]
[403130300,1769179921323,-4219.44240216,0.00029,7]
[403130301,1769179921333,-1000.0,0.00029,2]
[403130302,1769179921342,-2365.11,0.00029,2]
[403130303,1769179921351,-2365.11,0.00029,2]
[403130304,1769179921360,-157.67,0.00029,2]
[403130305,1769179921370,-211.58391801,0.00029,2]
[403130306,1769179921379,-2418.67921183,0.00029,10]
[403130307,1769179921388,-220.70411,0.00029,120]
[403130308,1769179921398,-1021.0,0.00029,2]
[403130309,1769179921407,-450.0,0.00029041,5]
[403130310,1769179921416,-450.0,0.00029041,5]
[403130311,1769179921426,-2365.11,0.000291,2]
[403130312,1769179921435,-2365.11,0.000291,2]
[403130313,1769179921444,-3354.44,0.000291,2]
[403130314,1769179921454,-2365.11,0.000292,2]
[403130315,1769179921464,-2365.11,0.000292,2]
[403130316,1769179921473,-157.67,0.000292,2]
[403130317,1769179921482,-1009.89,0.000292,14]
[403130318,1769179921491,-1333.2471,0.0002922,30]
[403130319,1769179921501,-2365.11,0.000293,2]
[403130320,1769179921510,-2365.11,0.000294,2]
[403130321,1769179921519,-2365.11,0.000294,2]
[403130322,1769179921532,-157.67,0.000294,2]
[403130323,1769179921541,-1432.25697,0.000294,120]
[403130324,1769179921551,-223.64375,0.000294,120]
[403130325,1769179921561,-1752.9056743,0.00029441,2]
[403130326,1769179921570,-947.44074191,0.00029486,7]
[403130327,1769179921579,-2177.08,0.00029492,2]
[403130328,1769179921588,-2000.0,0.000295,2]
[403130329,1769179921598,-1000.0,0.000295,2]
[403130330,1769179921607,-2365.11,0.000295,2]
[403130331,1769179921617,-2365.11,0.000295,2]
[403130332,1769179921626,-157.67,0.000295,2]
[403130333,1769179921635,-1000.0,0.000295,2]
[403130334,1769179921645,-870.32273417,0.000295,120]
[403130335,1769179921654,-550.0,0.00029589,5]
[403130336,1769179921664,-550.0,0.00029589,5]
[403130337,1769179921673,-2365.11,0.000296,2]
[403130338,1769179921682,-2365.11,0.000296,2]
[403130339,1769179921691,-2365.11,0.000297,2]
[403130340,1769179921700,-2365.11,0.000297,2]
[403130341,1769179921709,-157.67,0.000297,2]
[403130342,1769179921719,-4247.38008044,0.00029793,2]
[403130343,1769179921728,-2365.11,0.000298,2]
[403130344,1769179921737,-752.4,0.000298,14]
[403130345,1769179921747,-165.42,0.00029849,2]
[403130346,1769179921756,-10015.27385597,0.0002987,7]
[403130347,1769179921765,-10000.0,0.0002987,2]
[403130348,1769179921775,-2365.11,0.000299,2]
[403130349,1769179921787,-2365.11,0.000299,2]
[403130350,1769179921796,-157.67,0.000299,2]
[403130351,1769179921805,-165.46,0.0003,5]
[403130352,1769179921814,-269.88494742,0.0003,2]
[403130353,1769179921824,-14028.13015713,0.0003,7]
[403130354,1769179921833,-258.55856433,0.0003,10]
[403130355,1769179921842,-500.0,0.0003,2]
[403130356,1769179921851,-1265.0,0.0003,10]
[403130357,1769179921860,-20000.0,0.0003,4]
[403130358,1769179921869,-1000.0,0.0003,2]
[403130359,1769179921879,-402.07,0.0003,4]
[403130360,1769179921888,-413.49751241,0.0003,10]
[403130361,1769179921898,-160.09891789,0.0003,2]
[403130362,1769179921907,-8397.34563791,0.0003,10]
[403130363,1769179921916,-1608.14625717,0.0003,10]
[403130364,1769179921925,-674605.2108,0.0003,10]
[403130365,1769179921934,-2365.11,0.0003,2]
[403130366,1769179921944,-2365.11,0.0003,2]
[403130367,1769179921956,-23511.39788092,0.0003,10]
[403130368,1769179921967,-1887.42641578,0.0003,120]
[403130369,1769179921976,-461.38437415,0.0003,120]
[403130370,1769179921985,-332.1131098,0.0003,120]
[403130371,1769179921994,-300.0,0.0003,60]
[403130372,1769179922003,-652.24538683,0.0003,120]
[403130373,1769179922012,-266.50603355,0.0003,120]
[403130374,1769179922022,-1108.67,0.0003,30]
[403130375,1769179922033,-293.46322517,0.0003,60]
[403130376,1769179922043,-1900.0,0.0003,120]
[403130377,1769179922052,-1021.0,0.0003,7]
[403130378,1769179922061,-564.71646237,0.00030023,2]
[403130379,1769179922071,-1108.67,0.0003006,30]
[403130380,1769179922079,-2365.11,0.000301,2]
[403130381,1769179922089,-369.89,0.000301,7]
[403130382,1769179922098,-1108.67,0.0003012,30]
[403130383,1769179922107,-150.0,0.0003013,2]
[403130384,1769179922116,-1408.80187143,0.0003013,120]
[403130385,1769179922130,-1681.52380817,0.00030136,120]
[403130386,1769179922139,-500.0,0.00030137,120]
[403130387,1769179922148,-850.8564356,0.00030137,120]
[403130388,1769179922157,-1000.0,0.00030137,10]
[403130389,1769179922167,-1000.0,0.00030137,10]
[403130390,1769179922176,-1000.0,0.00030137,10]
[403130391,1769179922185,-1000.0,0.00030137,10]
[403130392,1769179922194,-1000.0,0.00030137,10]
[403130393,1769179922204,-1000.0,0.00030137,10]
[403130394,1769179922213,-1000.0,0.00030137,10]
[403130395,1769179922222,-1000.0,0.00030137,10]
[403130396,1769179922231,-1000.0,0.00030137,10]
[403130397,1769179922241,-1000.0,0.00030137,10]
[403130398,1769179922250,-1000.0,0.00030137,10]
[403130399,1769179922259,-1000.0,0.00030137,10]
[403130400,1769179922269,-1000.0,0.00030137,10]
[403130401,1769179922278,-1000.0,0.00030137,10]
[403130402,1769179922287,-1000.0,0.00030137,10]
[403130403,1769179922297,-1000.0,0.00030137,10]
[403130404,1769179922306,-1000.0,0.00030137,10]
[403130405,1769179922315,-1000.0,0.00030137,10]
[403130406,1769179922324,-1000.0,0.00030137,10]
[403130407,1769179922334,-1000.0,0.00030137,10]
[403130408,1769179922343,-1000.0,0.00030137,10]
[403130409,1769179922352,-1000.0,0.00030137,10]
[403130410,1769179922361,-1000.0,0.00030137,10]
[403130411,1769179922370,-1000.0,0.00030137,10]
[403130412,1769179922380,-1000.0,0.00030137,10]
[403130413,1769179922389,-1000.0,0.00030137,10]
[403130414,1769179922399,-1000.0,0.00030137,10]
[403130415,1769179922408,-1000.0,0.00030137,10]
[403130416,1769179922418,-1000.0,0.00030137,10]
[403130417,1769179922427,-1000.0,0.00030137,10]
[403130418,1769179922436,-1000.0,0.00030137,10]
[403130419,1769179922445,-1000.0,0.00030137,10]
[403130420,1769179922454,-1000.0,0.00030137,10]
[403130421,1769179922463,-1000.0,0.00030137,10]
[403130422,1769179922473,-1000.0,0.00030137,10]
[403130423,1769179922482,-1000.0,0.00030137,10]
[403130424,1769179922491,-1000.0,0.00030137,10]
[403130425,1769179922500,-1000.0,0.00030137,10]
[403130426,1769179922509,-1000.0,0.00030137,10]
[403130427,1769179922519,-179.83355845,0.00030137,2]
[403130428,1769179922530,-500.0,0.00030137,2]
[403130429,1769179922539,-500.0,0.00030137,2]
[403130430,1769179922548,-500.0,0.00030137,2]
[403130431,1769179922558,-500.0,0.00030137,2]
[403130432,1769179922567,-500.0,0.00030137,2]
[403130433,1769179922576,-500.0,0.00030137,2]
[403130434,1769179922585,-650.0,0.00030137,5]
[403130435,1769179922595,-650.0,0.00030137,5]
[403130436,1769179922604,-1108.67,0.0003018,30]
[403130437,1769179922614,-1432.25697,0.000302,120]
[403130438,1769179922623,-1108.67,0.0003024,30]
[403130439,1769179922632,-1108.67,0.000303,30]
[403130440,1769179922641,-1108.67,0.0003036,30]
[403130441,1769179922651,-3354.44,0.000304,2]